fUST/lending_fUST_20251129
["ID","MTS","AMOUNT","RATE_DAILY","PERIOD"]
[395032691,1764353448608,-1617.68,0.00016438,2]
[395032692,1764353448617,-409.85896,0.00016438,2]
[395032693,1764353448627,-500.0,0.00016438,2]
[395032694,1764353448636,-151.0,0.00016438,2]
[395032695,1764353448645,-151.0,0.00016438,2]
[395032696,1764353448654,-151.0,0.00016438,2]
[395032697,1764353448663,-500.0,0.00016473,2]
[395032698,1764353448672,-500.0,0.00016473,2]
[395032699,1764353448682,-470.26798814,0.00016473,2]
[395032700,1764353448691,-500.0,0.00016473,2]
[395032701,1764353448700,-500.0,0.00016473,2]
[395032702,1764353448709,-400.78005019,0.00016473,2]
[395032703,1764353448719,-500.0,0.00016473,2]
[395032704,1764353448728,-500.0,0.00016473,2]
[395032705,1764353448740,-500.0,0.00016473,2]
[395032706,1764353448750,-500.0,0.00016473,2]
[395032707,1764353448759,-500.809587,0.00016473,2]
[395032708,1764353448772,-500.0,0.00016473,2]
[395032709,1764353448782,-500.0,0.00016473,2]
[395032710,1764353448791,-500.0,0.00016473,2]
[395032711,1764353448800,-516.61103517,0.00016473,2]
[395032712,1764353448811,-500.0,0.00016473,2]
[395032713,1764353448820,-500.0,0.00016473,2]
[395032714,1764353448829,-500.0,0.00016473,2]
[395032715,1764353448838,-500.0,0.00016473,2]
[395032716,1764353448847,-500.0,0.00016473,2]
[395032717,1764353448856,-502.53661297,0.00016473,2]
[395032718,1764353448865,-526.33379956,0.00016473,2]
[395032719,1764353448875,-500.0,0.00016473,2]
[395032720,1764353448884,-500.0,0.00016473,2]
[395032721,1764353448893,-215.47395117,0.00016473,2]
[395032722,1764353448903,-151.0,0.000165,2]
[395032723,1764353448912,-151.0,0.000165,2]
[395032724,1764353448921,-151.0,0.000165,2]
[395032725,1764353448931,-151.0,0.000165,2]
[395032726,1764353448940,-151.0,0.000166,2]
[395032727,1764353448949,-151.0,0.000166,2]
[395032728,1764353448959,-151.0,0.000166,2]
[395032729,1764353448968,-151.0,0.000166,2]
[395032730,1764353448977,-151.0,0.000167,2]
[395032731,1764353448988,-151.0,0.000167,2]
[395032732,1764353448997,-151.0,0.000167,2]
[395032733,1764353449006,-151.0,0.000167,2]
[395032734,1764353449015,-151.0,0.000167,2]
[395032735,1764353449025,-500.0,0.00016712,2]
[395032736,1764353449034,-460.0,0.00016712,2]
[395032737,1764353449044,-544.37,0.00016712,2]
[395032738,1764353449053,-500.0,0.00016712,2]
[395032739,1764353449063,-500.0,0.00016712,2]
[395032740,1764353449072,-500.0,0.00016712,2]
[395032741,1764353449081,-500.0,0.00016712,2]
[395032742,1764353449090,-520.0,0.00016712,2]
[395032743,1764353449100,-660.63,0.00016712,2]
[395032744,1764353449109,-500.0,0.00016712,2]
[395032745,1764353449118,-500.0,0.00016712,2]
[395032746,1764353449127,-500.0,0.00016712,2]
[395032747,1764353449137,-687.48,0.00016712,2]
[395032748,1764353449146,-500.0,0.00016712,2]
[395032749,1764353449155,-753.15,0.00016712,2]
[395032750,1764353449164,-277.44420027,0.00016712,2]
[395032751,1764353449173,-535.09549013,0.00016712,2]
[395032752,1764353449183,-500.0,0.00016712,2]
[395032753,1764353449191,-528.45845316,0.00016712,2]
[395032754,1764353449200,-500.0,0.00016712,2]
[395032755,1764353449210,-670.94,0.00016712,2]
[395032756,1764353449219,-641.98,0.00016712,2]
[395032757,1764353449228,-500.0,0.00016712,2]
[395032758,1764353449239,-500.0,0.00016712,2]
[395032759,1764353449248,-500.0,0.00016712,2]
[395032760,1764353449257,-500.0,0.00016712,2]
[395032761,1764353449266,-500.0,0.00016712,2]
[395032762,1764353449275,-500.0,0.00016712,2]
[395032763,1764353449284,-500.0,0.00016712,2]
[395032764,1764353449293,-500.0,0.00016712,2]
[395032765,1764353449302,-500.0,0.00016712,2]
[395032766,1764353449311,-500.0,0.00016712,2]
[395032767,1764353449320,-1775.04,0.00016712,2]
[395032768,1764353449329,-500.0,0.00016712,2]
[395032769,1764353449338,-500.0,0.00016712,2]
[395032770,1764353449347,-525.9,0.00016712,2]
[395032771,1764353449357,-500.0,0.00016712,2]
[395032772,1764353449366,-500.0,0.00016712,2]
[395032773,1764353449376,-500.0,0.00016712,2]
[395032774,1764353449384,-967.27,0.00016712,2]
[395032775,1764353449393,-1254.2,0.00016712,2]
[395032776,1764353449402,-500.0,0.00016712,2]
[395032777,1764353449411,-500.0,0.00016712,2]
[395032778,1764353449420,-528.94,0.00016712,2]
[395032779,1764353449430,-928.06,0.00016712,2]
[395032780,1764353449439,-500.0,0.00016712,2]
[395032781,1764353449448,-1240.35,0.00016712,2]
[395032782,1764353449457,-500.0,0.00016712,2]
[395032783,1764353449466,-175.78517872,0.00016712,2]
[395032784,1764353449475,-500.0,0.00016712,2]
[395032785,1764353449487,-500.0,0.00016712,2]
[395032786,1764353449496,-500.0,0.00016712,2]
[395032787,1764353449505,-500.0,0.00016712,2]
[395032788,1764353449515,-500.0,0.00016712,2]
[395032789,1764353449525,-500.0,0.00016712,2]
[395032790,1764353449534,-500.0,0.00016712,2]
[395032791,1764353449543,-500.0,0.00016712,2]
[395032792,1764353449553,-500.0,0.00016712,2]
[395032793,1764353449561,-500.0,0.00016712,2]
[395032794,1764353449570,-1430.47,0.00016712,2]
[395032795,1764353449579,-1109.54,0.00016712,2]
[395032796,1764353449588,-500.0,0.00016712,2]
[395032797,1764353449598,-500.0,0.00016712,2]
[395032798,1764353449607,-500.0,0.00016712,2]
[395032799,1764353449616,-500.0,0.00016712,2]
[395032800,1764353449625,-500.0,0.00016712,2]
[395032801,1764353449634,-500.0,0.00016712,2]
[395032802,1764353449644,-1330.78,0.00016712,2]
[395032803,1764353449653,-500.0,0.00016712,2]
[395032804,1764353449662,-500.0,0.00016712,2]
[395032805,1764353449671,-500.0,0.00016712,2]
[395032806,1764353449680,-500.0,0.00016712,2]
[395032807,1764353449690,-732.29,0.00016712,2]
[395032808,1764353449699,-500.0,0.00016712,2]
[395032809,1764353449708,-500.0,0.00016712,2]
[395032810,1764353449717,-500.0,0.00016712,2]
[395032811,1764353449727,-1131.05,0.00016712,2]
[395032812,1764353449736,-925.88,0.00016712,2]
[395032813,1764353449746,-636.86,0.00016712,2]
[395032814,1764353449757,-200.73614095,0.00016712,2]
[395032815,1764353449770,-667.72,0.00016712,2]
[395032816,1764353449780,-293.06362424,0.00016712,2]
[395032817,1764353449790,-500.0,0.00016712,2]
[395032818,1764353449800,-965.82,0.00016712,2]
[395032819,1764353449810,-1233.79,0.00016712,2]
[395032820,1764353449820,-500.0,0.00016712,2]
[395032821,1764353449830,-500.0,0.00016712,2]
[395032822,1764353449839,-840.21,0.00016712,2]
[395032823,1764353449849,-500.0,0.00016712,2]
[395032824,1764353449859,-500.0,0.00016712,2]
[395032825,1764353449868,-500.0,0.00016712,2]
[395032826,1764353449877,-1080.27,0.00016712,2]
[395032827,1764353449887,-500.0,0.00016712,2]
[395032828,1764353449896,-500.0,0.00016712,2]
[395032829,1764353449906,-775.63,0.00016712,2]
[395032830,1764353449916,-500.0,0.00016712,2]
[395032831,1764353449925,-500.0,0.00016712,2]
[395032832,1764353449935,-1255.49,0.00016712,2]
[395032833,1764353449944,-3300.82,0.00016712,2]
[395032834,1764353449954,-503.62160064,0.00016712,2]
[395032835,1764353449964,-500.0,0.00016712,2]
[395032836,1764353449973,-500.0,0.00016712,2]
[395032837,1764353449982,-500.0,0.00016712,2]
[395032838,1764353449993,-500.0,0.00016712,2]
[395032839,1764353450002,-500.0,0.00016712,2]
[395032840,1764353450012,-887.19,0.00016712,2]
[395032841,1764353450021,-500.0,0.00016712,2]
[395032842,1764353450030,-500.0,0.00016712,2]
[395032843,1764353450040,-500.0,0.00016712,2]
[395032844,1764353450050,-500.0,0.00016712,2]
[395032845,1764353450059,-500.0,0.00016712,2]
[395032846,1764353450069,-500.0,0.00016712,2]
[395032847,1764353450078,-673.85,0.00016712,2]
[395032848,1764353450088,-500.0,0.00016712,2]
[395032849,1764353450098,-674.49,0.00016712,2]
[395032850,1764353450108,-500.0,0.00016712,2]
[395032851,1764353450118,-500.0,0.00016712,2]
[395032852,1764353450128,-1379.87,0.00016712,2]
[395032853,1764353450139,-500.0,0.00016712,2]
[395032854,1764353450149,-500.0,0.00016712,2]
[395032855,1764353450160,-500.0,0.00016712,2]
[395032856,1764353450171,-512.89,0.00016712,2]
[395032857,1764353450182,-500.0,0.00016712,2]
[395032858,1764353450193,-500.0,0.00016712,2]
[395032859,1764353450203,-1173.07,0.00016712,2]
[395032860,1764353450214,-568.96,0.00016712,2]
[395032861,1764353450223,-500.0,0.00016712,2]
[395032862,1764353450235,-500.0,0.00016712,2]
[395032863,1764353450248,-595.60028022,0.00016712,2]
[395032864,1764353450259,-500.0,0.00016712,2]
[395032865,1764353450268,-500.0,0.00016712,2]
[395032866,1764353450278,-500.0,0.00016712,2]
[395032867,1764353450289,-1551.93,0.00016712,2]
[395032868,1764353450300,-500.0,0.00016712,2]
[395032869,1764353450310,-500.0,0.00016712,2]
[395032870,1764353450320,-500.0,0.00016712,2]
[395032871,1764353450334,-757.17,0.00016712,2]
[395032872,1764353450345,-986.03,0.00016712,2]
[395032873,1764353450355,-500.0,0.00016712,2]
[395032874,1764353450364,-500.0,0.00016712,2]
[395032875,1764353450374,-500.0,0.00016712,2]
[395032876,1764353450383,-821.71,0.00016712,2]
[395032877,1764353450393,-593.25,0.00016712,2]
[395032878,1764353450402,-500.0,0.00016712,2]
[395032879,1764353450412,-500.0,0.00016712,2]
[395032880,1764353450421,-920.72,0.00016712,2]
[395032881,1764353450430,-500.0,0.00016712,2]
[395032882,1764353450440,-762.08,0.00016712,2]
[395032883,1764353450449,-500.0,0.00016712,2]
[395032884,1764353450458,-500.0,0.00016712,2]
[395032885,1764353450467,-570.8,0.00016712,2]
[395032886,1764353450477,-500.0,0.00016712,2]
[395032887,1764353450486,-500.0,0.00016712,2]
[395032888,1764353450497,-500.0,0.00016712,2]
[395032889,1764353450505,-648.27,0.00016712,2]
[395032890,1764353450515,-500.0,0.00016712,2]
[395032891,1764353450524,-500.0,0.00016712,2]
[395032892,1764353450534,-500.0,0.00016712,2]
[395032893,1764353450543,-500.0,0.00016712,2]
[395032894,1764353450553,-883.45,0.00016712,2]
[395032895,1764353450562,-500.0,0.00016712,2]
[395032896,1764353450571,-500.0,0.00016712,2]
[395032897,1764353450580,-500.0,0.00016712,2]
[395032898,1764353450589,-895.93,0.00016712,2]
[395032899,1764353450598,-500.0,0.00016712,2]
[395032900,1764353450608,-500.0,0.00016712,2]
[395032901,1764353450617,-500.0,0.00016712,2]
[395032902,1764353450626,-1248.3,0.00016712,2]
[395032903,1764353450635,-659.09,0.00016712,2]
[395032904,1764353450644,-777.82,0.00016712,2]
[395032905,1764353450653,-500.0,0.00016712,2]
[395032906,1764353450662,-1186.88,0.00016712,2]
[395032907,1764353450672,-500.0,0.00016712,2]
[395032908,1764353450681,-500.0,0.00016712,2]
[395032909,1764353450690,-500.0,0.00016712,2]
[395032910,1764353450699,-500.0,0.00016712,2]
[395032911,1764353450708,-1200.36,0.00016712,2]
[395032912,1764353450718,-500.0,0.00016712,2]
[395032913,1764353450727,-500.0,0.00016712,2]
[395032914,1764353450738,-500.0,0.00016712,2]
[395032915,1764353450747,-1093.31,0.00016712,2]
[395032916,1764353450756,-899.87,0.00016712,2]
[395032917,1764353450767,-1020.67,0.00016712,2]
[395032918,1764353450780,-500.0,0.00016712,2]
[395032919,1764353450789,-500.0,0.00016712,2]
[395032920,1764353450799,-500.0,0.00016712,2]
[395032921,1764353450809,-760.97,0.00016712,2]
[395032922,1764353450819,-287.0278606,0.00016712,2]
[395032923,1764353450828,-1053.11,0.00016712,2]
[395032924,1764353450837,-833.94,0.00016712,2]
[395032925,1764353450846,-775.86,0.00016712,2]
[395032926,1764353450856,-500.0,0.00016712,2]
[395032927,1764353450865,-500.0,0.00016712,2]
[395032928,1764353450874,-500.0,0.00016712,2]
[395032929,1764353450884,-500.0,0.00016712,2]
[395032930,1764353450894,-500.0,0.00016712,2]
[395032931,1764353450903,-500.0,0.00016712,2]
[395032932,1764353450913,-752.64,0.00016712,2]
[395032933,1764353450922,-500.0,0.00016712,2]
[395032934,1764353450932,-727.52,0.00016712,2]
[395032935,1764353450942,-500.0,0.00016712,2]
[395032936,1764353450952,-255.76838809,0.00016712,2]
[395032937,1764353450961,-931.66,0.00016712,2]
[395032938,1764353450970,-902.75,0.00016712,2]
[395032939,1764353450979,-791.35,0.00016712,2]
[395032940,1764353450989,-527.66,0.00016712,2]
[395032941,1764353451000,-500.0,0.00016712,2]
[395032942,1764353451009,-1579.61,0.00016712,2]
[395032943,1764353451018,-4598.1,0.00016712,2]
[395032944,1764353451027,-500.0,0.00016712,2]
[395032945,1764353451036,-1186.44,0.00016712,2]
[395032946,1764353451045,-500.0,0.00016712,2]
[395032947,1764353451054,-500.0,0.00016712,2]
[395032948,1764353451063,-500.0,0.00016712,2]
[395032949,1764353451073,-212.15034966,0.00016712,2]
[395032950,1764353451082,-500.0,0.00016712,2]
[395032951,1764353451091,-500.0,0.00016712,2]
[395032952,1764353451101,-500.0,0.00016712,2]
[395032953,1764353451110,-1466.1,0.00016712,2]
[395032954,1764353451120,-500.0,0.00016712,2]
[395032955,1764353451129,-500.0,0.00016712,2]
[395032956,1764353451139,-174.33504274,0.00016712,2]
[395032957,1764353451148,-500.0,0.00016712,2]
[395032958,1764353451157,-500.0,0.00016712,2]
[395032959,1764353451167,-500.0,0.00016712,2]
[395032960,1764353451176,-500.0,0.00016712,2]
[395032961,1764353451185,-683.96,0.00016712,2]
[395032962,1764353451195,-676.46,0.00016712,2]
[395032963,1764353451204,-500.0,0.00016712,2]
[395032964,1764353451214,-559.67,0.00016712,2]
[395032965,1764353451223,-541.46,0.00016712,2]
[395032966,1764353451232,-500.0,0.00016712,2]
[395032967,1764353451242,-500.0,0.00016712,2]
[395032968,1764353451251,-500.0,0.00016712,2]
[395032969,1764353451260,-500.0,0.00016712,2]
[395032970,1764353451269,-673.43,0.00016712,2]
[395032971,1764353451279,-550.43,0.00016712,2]
[395032972,1764353451288,-500.0,0.00016712,2]
[395032973,1764353451297,-500.0,0.00016712,2]
[395032974,1764353451307,-801.68,0.00016712,2]
[395032975,1764353451316,-500.0,0.00016712,2]
[395032976,1764353451325,-902.97,0.00016712,2]
[395032977,1764353451335,-706.86,0.00016712,2]
[395032978,1764353451344,-500.0,0.00016712,2]
[395032979,1764353451353,-500.0,0.00016712,2]
[395032980,1764353451363,-552.47,0.00016712,2]
[395032981,1764353451372,-1938.42,0.00016712,2]
[395032982,1764353451381,-500.0,0.00016712,2]
[395032983,1764353451390,-500.0,0.00016712,2]
[395032984,1764353451399,-500.0,0.00016712,2]
[395032985,1764353451409,-500.0,0.00016712,2]
[395032986,1764353451418,-500.0,0.00016712,2]
[395032987,1764353451427,-216.45930868,0.00016712,2]
[395032988,1764353451451,-283.54069132,0.00016712,2]
[395032989,1764353451460,-500.0,0.00016712,2]
[395032990,1764353451469,-500.0,0.00016712,2]
[395032991,1764353451478,-1664.34,0.00016712,2]
[395032992,1764353451488,-500.0,0.00016712,2]
[395032993,1764353451497,-1073.02250767,0.00016712,2]
[395033006,1764354260794,175.725096,8.47e-05,2]
[395033007,1764354283699,175.725096,8.47e-05,2]
[395033016,1764354426031,175.725096,8.47e-05,2]
[395033017,1764354442761,175.725096,8.47e-05,2]
[395033018,1764354447125,-150.0,8.773e-05,2]
[395033019,1764354447147,-163.01905592,8.996e-05,2]
[395033026,1764354557149,-12.70604008,8.996e-05,2]
[395033027,1764354557171,-150.0,9.884e-05,2]
[395033028,1764354557191,-177.0,0.00011884,2]
[395033029,1764354557211,-353.59244258,0.0001354,2]
[395033030,1764354557231,-160.0,0.0001354,2]
[395033031,1764354557252,-175.65205085,0.00013742,2]
[395033032,1764354557274,-204.0,0.00013885,2]
[395033033,1764354557292,-500.0,0.00014564,2]
[395033034,1764354557313,-500.0,0.00014718,2]
[395033035,1764354557334,-185.95555613,0.00014771,2]
[395033036,1764354557355,-300.0,0.00014867,2]
[395033037,1764354557376,-1200.0,0.00014868,2]
[395033038,1764354557397,-500.0,0.00014868,2]
[395033039,1764354557420,-500.0,0.00014868,2]
[395033040,1764354557439,-500.0,0.00014868,2]
[395033041,1764354557458,-500.0,0.00014868,2]
[395033042,1764354557480,-370.46082322,0.00014868,2]
[395033043,1764354557499,-500.0,0.00014868,2]
[395033044,1764354557520,-500.0,0.00014868,2]
[395033045,1764354557542,-500.0,0.00014868,2]
[395033046,1764354557562,-289.19547914,0.00014868,2]
[395033047,1764354557582,-511.4843494,0.00014868,2]
[395033048,1764354557604,-500.0,0.00014868,2]
[395033049,1764354557622,-260.0,0.00014868,2]
[395033050,1764354557644,-500.0,0.00014868,2]
[395033051,1764354557663,-923.98362864,0.00014869,2]
[395033052,1764354557682,-50000.0,0.00014869,2]
[395033053,1764354557703,-273.0,0.00014871,2]
[395033054,1764354557725,-229.0,0.00014948,2]
[395033055,1764354557744,-300.0,0.00014948,2]
[395033056,1764354557764,-150.0,0.00014948,2]
[395033057,1764354557783,-1200.0,0.00014948,2]
[395033058,1764354557803,-750.0,0.00014949,2]
[395033059,1764354557826,-500.0,0.00014998,2]
[395033060,1764354557848,-174.09891692,0.00015043,2]
[395033061,1764354564532,-325.90108308,0.00015043,2]
[395033062,1764354564551,-500.0,0.00015132,2]
[395033063,1764354564571,-500.0,0.00015622,2]
[395033064,1764354564591,-392.30335885,0.00015858,2]
[395033065,1764354569096,-225.96923459,0.00014893,2]
[395033135,1764354632424,-99.93184849,0.00014893,2]
[395033136,1764354632435,-194.72792766,0.0001494,2]
[395033138,1764354632445,-201.93286099,0.00015488,2]
[395033140,1764354632456,-1111.0,0.00015794,2]
[395033142,1764354632465,-718.69664115,0.00015794,2]
[395033143,1764354632475,-231.0,0.00015885,2]
[395033144,1764354632485,-209.40437684,0.00016036,2]
[395033145,1764354632496,-932.0,0.00016274,2]
[395033146,1764354632506,-300.0,0.00016427,2]
[395033147,1764354632516,-1200.0,0.00016427,2]
[395033150,1764354632526,-808.09,0.00016428,3]
[395033153,1764354632536,-404.04,0.00016428,3]
[395033155,1764354632546,-202.02,0.00016428,3]
[395033158,1764354632557,-606.11,0.00016428,3]
[395033160,1764354632567,-998.60195726,0.00016437,2]
[395033163,1764354632577,-312.88438096,0.00016437,2]
[395033165,1764354632587,-500.0,0.00016437,2]
[395033167,1764354632598,-500.0,0.00016437,2]
[395033169,1764354632608,-500.0,0.00016437,2]
[395033171,1764354632619,-509.87945741,0.00016437,2]
[395033172,1764354632629,-500.0,0.00016437,2]
[395033173,1764354632639,-500.0,0.00016437,2]
[395033174,1764354632648,-500.0,0.00016437,2]
[395033175,1764354632658,-500.0,0.00016437,2]
[395033176,1764354632668,-500.0,0.00016437,2]
[395033177,1764354632678,-500.0,0.00016437,2]
[395033178,1764354632688,-167.94270549,0.00016437,2]
[395033179,1764354632698,-500.0,0.00016437,2]
[395033180,1764354632707,-618.28,0.00016438,2]
[395033181,1764354632718,-500.0,0.00016438,2]
[395033182,1764354632727,-858.69,0.00016438,2]
[395033183,1764354632737,-903.86,0.00016438,2]
[395033184,1764354632747,-500.0,0.00016438,2]
[395033185,1764354632757,-500.0,0.00016438,2]
[395033186,1764354632767,-500.0,0.00016438,2]
[395033187,1764354632777,-500.0,0.00016438,2]
[395033188,1764354632787,-753.24,0.00016438,2]
[395033189,1764354632798,-500.0,0.00016438,2]
[395033190,1764354632809,-500.0,0.00016438,2]
[395033191,1764354632819,-844.0,0.00016438,2]
[395033192,1764354632829,-500.0,0.00016438,2]
[395033193,1764354632839,-500.0,0.00016438,2]
[395033194,1764354632849,-500.0,0.00016438,2]
[395033195,1764354632860,-500.0,0.00016438,2]
[395033196,1764354632869,-195.42099728,0.00016438,2]
[395033197,1764354632880,-500.0,0.00016438,2]
[395033198,1764354632890,-500.0,0.00016438,2]
[395033199,1764354632900,-500.0,0.00016438,2]
[395033200,1764354632910,-466.60582586,0.00016438,2]
[395033201,1764354632920,-500.0,0.00016438,2]
[395033202,1764354632930,-500.0,0.00016438,2]
[395033203,1764354632940,-500.0,0.00016438,2]
[395033204,1764354632950,-500.0,0.00016438,2]
[395033205,1764354632960,-658.19,0.00016438,2]
[395033206,1764354632969,-500.0,0.00016438,2]
[395033207,1764354632979,-500.0,0.00016438,2]
[395033208,1764354632990,-502.3309003,0.00016438,2]
[395033209,1764354633000,-298.77146235,0.00016438,2]
[395033210,1764354633010,-500.0,0.00016438,2]
[395033211,1764354633021,-500.0,0.00016438,2]
[395033212,1764354633033,-500.0,0.00016438,2]
[395033213,1764354633043,-500.0,0.00016438,2]
[395033214,1764354633053,-500.0,0.00016438,2]
[395033215,1764354633063,-460.0,0.00016438,2]
[395033216,1764354633074,-500.0,0.00016438,2]
[395033217,1764354633084,-491.11324229,0.00016438,2]
[395033218,1764354633099,-8.88675771,0.00016438,2]
[395033219,1764354633113,-500.0,0.00016438,2]
[395033220,1764354633326,-504.56,0.00016438,2]
[395033221,1764354633346,-500.0,0.00016438,2]
[395033222,1764354633357,-500.0,0.00016438,2]
[395033223,1764354633367,-378.02099766,0.00016438,2]
[395033224,1764354633378,-210.58224463,0.00016438,2]
[395033225,1764354633391,-437.36775537,0.00016438,2]
[395033226,1764354633401,-500.0,0.00016438,2]
[395033227,1764354633413,-500.0,0.00016438,2]
[395033228,1764354633424,-500.0,0.00016438,2]
[395033229,1764354633434,-476.40769669,0.00016438,2]
[395033230,1764354633447,-23.59230331,0.00016438,2]
[395033231,1764354633457,-500.0,0.00016438,2]
[395033232,1764354633468,-827.72,0.00016438,2]
[395033233,1764354633479,-500.0,0.00016438,2]
[395033234,1764354633489,-333.58037521,0.00016438,2]
[395033235,1764354633507,-1997.85962479,0.00016438,2]
[395033236,1764354633518,-236.43687837,0.00016438,2]
[395033237,1764354633528,-707.28,0.00016438,2]
[395033238,1764354633538,-448.58020553,0.00016438,2]
[395033239,1764354633548,-500.0,0.00016438,2]
[395033240,1764354633559,-500.0,0.00016438,2]
[395033241,1764354633570,-500.0,0.00016438,2]
[395033242,1764354633580,-500.0,0.00016438,2]
[395033243,1764354633591,-500.0,0.00016438,2]
[395033244,1764354633602,-500.0,0.00016438,2]
[395033245,1764354633614,-626.96,0.00016438,2]
[395033246,1764354633625,-500.0,0.00016438,2]
[395033247,1764354633637,-500.0,0.00016438,2]
[395033248,1764354633649,-209.96184696,0.00016438,2]
[395033249,1764354633660,-500.0,0.00016438,2]
[395033250,1764354633671,-500.0,0.00016438,2]
[395033251,1764354633681,-500.0,0.00016438,2]
[395033252,1764354633691,-500.0,0.00016438,2]
[395033253,1764354633701,-500.0,0.00016438,2]
[395033254,1764354633711,-500.0,0.00016438,2]
[395033255,1764354633722,-500.0,0.00016438,2]
[395033256,1764354633734,-717.93,0.00016438,2]
[395033257,1764354633745,-506.43,0.00016438,2]
[395033258,1764354633755,-500.0,0.00016438,2]
[395033259,1764354633765,-500.0,0.00016438,2]
[395033260,1764354633776,-527.50352659,0.00016438,2]
[395033261,1764354633785,-636.52,0.00016438,2]
[395033262,1764354633795,-500.0,0.00016438,2]
[395033263,1764354633805,-500.0,0.00016438,2]
[395033264,1764354633815,-500.0,0.00016438,2]
[395033265,1764354633826,-500.0,0.00016438,2]
[395033266,1764354633836,-824.13,0.00016438,2]
[395033267,1764354633846,-556.15,0.00016438,2]
[395033268,1764354633857,-500.0,0.00016438,2]
[395033269,1764354633867,-500.0,0.00016438,2]
[395033270,1764354633878,-500.0,0.00016438,2]
[395033271,1764354633888,-500.0,0.00016438,2]
[395033272,1764354633898,-1006.75,0.00016438,2]
[395033273,1764354633908,-500.0,0.00016438,2]
[395033274,1764354633919,-500.0,0.00016438,2]
[395033275,1764354633929,-615.25,0.00016438,2]
[395033276,1764354633940,-500.0,0.00016438,2]
[395033277,1764354633950,-831.15,0.00016438,2]
[395033278,1764354633960,-500.0,0.00016438,2]
[395033279,1764354633971,-500.0,0.00016438,2]
[395033280,1764354633981,-500.0,0.00016438,2]
[395033281,1764354633991,-500.0,0.00016438,2]
[395033282,1764354634001,-500.0,0.00016438,2]
[395033283,1764354634011,-561.69,0.00016438,2]
[395033284,1764354634022,-500.0,0.00016438,2]
[395033285,1764354634032,-500.0,0.00016438,2]
[395033286,1764354634043,-500.0,0.00016438,2]
[395033287,1764354634053,-2440.16,0.00016438,2]
[395033288,1764354634063,-500.0,0.00016438,2]
[395033289,1764354634072,-500.0,0.00016438,2]
[395033290,1764354634082,-521.55,0.00016438,2]
[395033291,1764354634098,-500.0,0.00016438,2]
[395033292,1764354634111,-500.0,0.00016438,2]
[395033293,1764354634122,-1000.0,0.00016438,2]
[395033294,1764354634132,-960.17,0.00016438,2]
[395033295,1764354634142,-500.0,0.00016438,2]
[395033296,1764354634154,-500.0,0.00016438,2]
[395033297,1764354634164,-523.23,0.00016438,2]
[395033298,1764354634175,-500.0,0.00016438,2]
[395033299,1764354634184,-500.0,0.00016438,2]
[395033300,1764354634197,-500.0,0.00016438,2]
[395033301,1764354634207,-500.0,0.00016438,2]
[395033302,1764354634218,-544.30791776,0.00016438,2]